[Event "Late-Titled-Tuesday-Blitz-March-19-2024"]
[Site "Chess.com"]
[Date "2024.03.19"]
[Round "7"]
[White "DenLaz"]
[Black "Blitzstream"]
[Result "1-0"]
[WhiteElo "3100"]
[BlackElo "2839"]
[TimeControl "180+1"]
[EndTime "15:16:51 PDT"]
[Termination "DenLaz won on time"]

1. d4 {[%clk 0:03:00.9]} 1... d5 {[%clk 0:03:00.1]} 2. c4 {[%clk 0:03:01.5]}
2... e6 {[%clk 0:03:00.4]} 3. Nf3 {[%clk 0:03:02.2]} 3... Nf6 {[%clk 0:03:00.8]}
4. g3 {[%clk 0:03:02.9]} 4... Bb4+ {[%clk 0:02:59.2]} 5. Bd2 {[%clk 0:03:02.9]}
5... Be7 {[%clk 0:02:59.9]} 6. Bg2 {[%clk 0:03:03.5]} 6... O-O {[%clk
0:03:00.5]} 7. Qc2 {[%clk 0:03:02.8]} 7... dxc4 {[%clk 0:02:59.7]} 8. Qxc4
{[%clk 0:03:01.6]} 8... a6 {[%clk 0:03:00.1]} 9. Qc2 {[%clk 0:02:59]} 9... b5
{[%clk 0:02:52.5]} 10. O-O {[%clk 0:02:57.7]} 10... Bb7 {[%clk 0:02:52.4]} 11.
Rc1 {[%clk 0:02:57.3]} 11... Bd6 {[%clk 0:02:24.1]} 12. Bg5 {[%clk 0:02:53.9]}
12... Nbd7 {[%clk 0:02:21.3]} 13. Nbd2 {[%clk 0:02:52.6]} 13... c5 {[%clk
0:02:14.7]} 14. dxc5 {[%clk 0:02:49.1]} 14... Bxc5 {[%clk 0:02:14.5]} 15. e3
{[%clk 0:02:35.2]} 15... Rc8 {[%clk 0:02:11.9]} 16. Qd1 {[%clk 0:02:22.5]} 16...
h6 {[%clk 0:02:11.3]} 17. Bxf6 {[%clk 0:02:22.2]} 17... Qxf6 {[%clk 0:02:11.3]}
18. Rab1 {[%clk 0:02:04]} 18... Rfd8 {[%clk 0:02:07.4]} 19. Qe2 {[%clk
0:02:03.4]} 19... Nb6 {[%clk 0:02:05.4]} 20. Ne1 {[%clk 0:02:00.5]} 20... Bxg2
{[%clk 0:02:00.8]} 21. Kxg2 {[%clk 0:02:01.4]} 21... Qf5 {[%clk 0:01:43.9]} 22.
Nef3 {[%clk 0:01:58.7]} 22... Qd5 {[%clk 0:01:36.5]} 23. Nb3 {[%clk 0:01:56.9]}
23... Be7 {[%clk 0:01:29]} 24. Rd1 {[%clk 0:01:53.8]} 24... Qc4 {[%clk 0:01:29]}
25. Qxc4 {[%clk 0:01:20.2]} 25... Nxc4 {[%clk 0:01:28]} 26. Rxd8+ {[%clk
0:01:19.2]} 26... Rxd8 {[%clk 0:01:27.3]} 27. Nbd4 {[%clk 0:01:19]} 27... Bf6
{[%clk 0:01:27.2]} 28. b3 {[%clk 0:01:16.5]} 28... Nb6 {[%clk 0:01:17.6]} 29.
Rc1 {[%clk 0:01:16.2]} 29... Nd5 {[%clk 0:01:00.9]} 30. Nc6 {[%clk 0:01:12.1]}
30... Ra8 {[%clk 0:00:54.8]} 31. e4 {[%clk 0:01:09.6]} 31... Ne7 {[%clk
0:00:48.1]} 32. Nxe7+ {[%clk 0:00:54.3]} 32... Bxe7 {[%clk 0:00:48]} 33. Nd4
{[%clk 0:00:53.2]} 33... Kf8 {[%clk 0:00:47]} 34. Kf3 {[%clk 0:00:50.8]} 34...
Ke8 {[%clk 0:00:46.7]} 35. Ke2 {[%clk 0:00:49.6]} 35... Bf6 {[%clk 0:00:42.5]}
36. Nf3 {[%clk 0:00:46.6]} 36... Be7 {[%clk 0:00:39.4]} 37. Ne5 {[%clk
0:00:45.6]} 37... Bf6 {[%clk 0:00:34.8]} 38. Nd3 {[%clk 0:00:46]} 38... Be7
{[%clk 0:00:34.4]} 39. Rc6 {[%clk 0:00:42.7]} 39... a5 {[%clk 0:00:34.8]} 40.
Rb6 {[%clk 0:00:40.3]} 40... b4 {[%clk 0:00:33.5]} 41. Rc6 {[%clk 0:00:37.6]}
41... a4 {[%clk 0:00:30.9]} 42. Rc2 {[%clk 0:00:24.5]} 42... axb3 {[%clk
0:00:31]} 43. axb3 {[%clk 0:00:25.2]} 43... Ra3 {[%clk 0:00:30.9]} 44. Rb2
{[%clk 0:00:25.3]} 44... Bf6 {[%clk 0:00:26.9]} 45. e5 {[%clk 0:00:25.5]} 45...
Be7 {[%clk 0:00:27.4]} 46. Ke3 {[%clk 0:00:25.9]} 46... Ra8 {[%clk 0:00:20.5]}
47. Ke4 {[%clk 0:00:24.1]} 47... Kd7 {[%clk 0:00:19.3]} 48. Rd2 {[%clk
0:00:23.3]} 48... Kc6 {[%clk 0:00:18.6]} 49. Rc2+ {[%clk 0:00:23.9]} 49... Kb5
{[%clk 0:00:18.1]} 50. Rc7 {[%clk 0:00:23.7]} 50... Bd8 {[%clk 0:00:17.5]} 51.
Rxf7 {[%clk 0:00:22.5]} 51... Ra3 {[%clk 0:00:16.9]} 52. Rb7+ {[%clk 0:00:21.6]}
52... Bb6 {[%clk 0:00:17.3]} 53. Nxb4 {[%clk 0:00:20.1]} 53... Rxb3 {[%clk
0:00:17.4]} 54. Nd3 {[%clk 0:00:20.7]} 54... Kc4 {[%clk 0:00:14.5]} 55. Nf4
{[%clk 0:00:20]} 55... Rb2 {[%clk 0:00:03.9]} 56. Rb8 {[%clk 0:00:19.7]} 56...
Bc5 {[%clk 0:00:01.1]} 57. Rxb2 {[%clk 0:00:19.1]} 1-0

[Event "Late-Titled-Tuesday-Blitz-March-19-2024"]
[Site "Chess.com"]
[Date "2024.03.19"]
[Round "7"]
[White "ChristopherYoo"]
[Black "Lukianoo"]
[Result "1-0"]
[WhiteElo "2964"]
[BlackElo "2848"]
[TimeControl "180+1"]
[EndTime "15:16:53 PDT"]
[Termination "ChristopherYoo won by resignation"]

1. e4 {[%clk 0:03:00.9]} 1... c6 {[%clk 0:02:58.8]} 2. d4 {[%clk 0:03:00.5]}
2... d5 {[%clk 0:02:59.7]} 3. e5 {[%clk 0:03:00.9]} 3... c5 {[%clk 0:02:59.6]}
4. Nf3 {[%clk 0:02:59.4]} 4... Bg4 {[%clk 0:02:59.1]} 5. dxc5 {[%clk 0:02:55]}
5... e6 {[%clk 0:02:59.4]} 6. c4 {[%clk 0:02:30.2]} 6... Nc6 {[%clk 0:02:58.8]}
7. cxd5 {[%clk 0:02:28.9]} 7... exd5 {[%clk 0:02:59.4]} 8. Nc3 {[%clk
0:02:15.7]} 8... d4 {[%clk 0:02:26.6]} 9. Ne4 {[%clk 0:02:14.3]} 9... Bxc5
{[%clk 0:02:26]} 10. Be2 {[%clk 0:01:20.2]} 10... Bb4+ {[%clk 0:02:26]} 11. Bd2
{[%clk 0:01:20.3]} 11... Qd5 {[%clk 0:02:26.2]} 12. Bxb4 {[%clk 0:00:52.7]}
12... Qxe4 {[%clk 0:02:24.1]} 13. Bd6 {[%clk 0:00:53.3]} 13... Bxf3 {[%clk
0:02:14.4]} 14. gxf3 {[%clk 0:00:54.2]} 14... Qd5 {[%clk 0:02:09.3]} 15. Qb3
{[%clk 0:00:54.3]} 15... Qa5+ {[%clk 0:02:01.9]} 16. Kf1 {[%clk 0:00:53.5]}
16... Qb6 {[%clk 0:01:02.9]} 17. Rg1 {[%clk 0:00:50]} 17... g6 {[%clk
0:00:58.8]} 18. Bc4 {[%clk 0:00:37.6]} 18... Nh6 {[%clk 0:00:47.5]} 19. Bxf7+
{[%clk 0:00:34.9]} 19... Nxf7 {[%clk 0:00:45.6]} 20. Qe6+ {[%clk 0:00:34.8]}
20... Kd8 {[%clk 0:00:46.1]} 21. Qxf7 {[%clk 0:00:34.8]} 21... Re8 {[%clk
0:00:39]} 22. e6 {[%clk 0:00:34]} 22... Ne7 {[%clk 0:00:39]} 23. Ba3 {[%clk
0:00:19.4]} 23... Rc8 {[%clk 0:00:37.1]} 24. Kg2 {[%clk 0:00:19]} 24... Rc6
{[%clk 0:00:35.6]} 25. Rge1 {[%clk 0:00:16.4]} 25... Qb5 {[%clk 0:00:28.4]} 26.
Rad1 {[%clk 0:00:12.5]} 26... Qg5+ {[%clk 0:00:24.3]} 27. Kh1 {[%clk 0:00:12]}
27... Qd5 {[%clk 0:00:23.8]} 28. Qf4 {[%clk 0:00:04.6]} 28... Nf5 {[%clk
0:00:23.2]} 29. Re5 {[%clk 0:00:04]} 29... Qxa2 {[%clk 0:00:14.6]} 30. Rxf5
{[%clk 0:00:04.1]} 30... Qxe6 {[%clk 0:00:11.8]} 31. Qxd4+ {[%clk 0:00:03.3]}
31... Kc8 {[%clk 0:00:11.9]} 32. Rd5 {[%clk 0:00:03.8]} 32... b6 {[%clk
0:00:10.4]} 33. Rd8+ {[%clk 0:00:03.8]} 33... Rxd8 {[%clk 0:00:10.7]} 34. Qxd8+
{[%clk 0:00:04.7]} 34... Kb7 {[%clk 0:00:11.4]} 35. Qd7+ {[%clk 0:00:05.3]}
35... Ka6 {[%clk 0:00:12]} 36. Qxe6 {[%clk 0:00:05.6]} 36... Rxe6 {[%clk
0:00:12.9]} 37. Rd7 {[%clk 0:00:05.9]} 37... h5 {[%clk 0:00:13.2]} 38. h4 {[%clk
0:00:05.7]} 38... Rf6 {[%clk 0:00:11.7]} 39. Kg2 {[%clk 0:00:06.1]} 39... Rf4
{[%clk 0:00:12.1]} 40. Kg3 {[%clk 0:00:06.8]} 40... Rf6 {[%clk 0:00:11.5]} 41.
Rg7 {[%clk 0:00:07.4]} 41... Re6 {[%clk 0:00:11.7]} 42. f4 {[%clk 0:00:07.7]}
42... Rf6 {[%clk 0:00:10.6]} 43. Kf3 {[%clk 0:00:08.5]} 43... Kb5 {[%clk
0:00:10.4]} 44. Rxa7 {[%clk 0:00:07.8]} 44... Kc6 {[%clk 0:00:10.8]} 45. Re7
{[%clk 0:00:07.4]} 45... Kd5 {[%clk 0:00:10.8]} 46. Re5+ {[%clk 0:00:07.6]}
46... Kd4 {[%clk 0:00:10.9]} 47. Rg5 {[%clk 0:00:08.5]} 47... Rc6 {[%clk
0:00:09.5]} 48. f5 {[%clk 0:00:08.3]} 48... Rf6 {[%clk 0:00:08.3]} 49. Be7
{[%clk 0:00:06.9]} 49... Rf7 {[%clk 0:00:07.8]} 50. f6 {[%clk 0:00:07.3]} 50...
b5 {[%clk 0:00:06.2]} 51. Kf4 {[%clk 0:00:07.7]} 51... Rh7 {[%clk 0:00:05.9]}
52. Rxg6 {[%clk 0:00:08]} 52... Kd5 {[%clk 0:00:06.8]} 53. Rg7 {[%clk
0:00:06.6]} 53... Rh8 {[%clk 0:00:06.5]} 54. f7 {[%clk 0:00:07.2]} 54... Ke6
{[%clk 0:00:06.5]} 55. f8=Q {[%clk 0:00:07.5]} 1-0

[Event "Late-Titled-Tuesday-Blitz-March-19-2024"]
[Site "Chess.com"]
[Date "2024.03.19"]
[Round "7"]
[White "Meri-Arabidze"]
[Black "ckgchess"]
[Result "0-1"]
[WhiteElo "2677"]
[BlackElo "2928"]
[TimeControl "180+1"]
[EndTime "15:16:55 PDT"]
[Termination "ckgchess won on time"]

1. d4 {[%clk 0:03:00.9]} 1... Nf6 {[%clk 0:03:00.1]} 2. c4 {[%clk 0:03:01.3]}
2... g6 {[%clk 0:03:00.7]} 3. g3 {[%clk 0:03:01.5]} 3... Bg7 {[%clk 0:03:01.3]}
4. Bg2 {[%clk 0:03:02.2]} 4... O-O {[%clk 0:03:02]} 5. Nc3 {[%clk 0:03:02.6]}
5... d6 {[%clk 0:03:02.6]} 6. Nf3 {[%clk 0:03:02.9]} 6... Nbd7 {[%clk
0:03:03.2]} 7. O-O {[%clk 0:03:03.1]} 7... e5 {[%clk 0:03:04]} 8. e4 {[%clk
0:03:03.7]} 8... exd4 {[%clk 0:03:02.7]} 9. Nxd4 {[%clk 0:03:04.6]} 9... Re8
{[%clk 0:03:03.1]} 10. f3 {[%clk 0:03:03.9]} 10... a6 {[%clk 0:03:00.3]} 11. Be3
{[%clk 0:03:00.2]} 11... Rb8 {[%clk 0:02:41]} 12. a4 {[%clk 0:02:55.4]} 12... a5
{[%clk 0:02:32.6]} 13. Ndb5 {[%clk 0:02:52.9]} 13... Ne5 {[%clk 0:02:05.6]} 14.
b3 {[%clk 0:02:52.4]} 14... Nc6 {[%clk 0:02:06.2]} 15. Rc1 {[%clk 0:02:50]}
15... Nb4 {[%clk 0:02:04.9]} 16. Nd5 {[%clk 0:02:37.5]} 16... Nfxd5 {[%clk
0:01:34.9]} 17. cxd5 {[%clk 0:02:38.4]} 17... Re7 {[%clk 0:01:35.4]} 18. Ba7
{[%clk 0:02:16]} 18... Ra8 {[%clk 0:01:34.7]} 19. Bd4 {[%clk 0:02:16.7]} 19...
Bxd4+ {[%clk 0:01:13.4]} 20. Qxd4 {[%clk 0:02:17.6]} 20... Na6 {[%clk
0:01:13.1]} 21. Rc3 {[%clk 0:02:03.1]} 21... Bd7 {[%clk 0:01:09.5]} 22. h4
{[%clk 0:01:50.2]} 22... Bxb5 {[%clk 0:01:05.3]} 23. axb5 {[%clk 0:01:51.1]}
23... Nc5 {[%clk 0:01:05.6]} 24. h5 {[%clk 0:01:49.8]} 24... b6 {[%clk
0:00:57.1]} 25. f4 {[%clk 0:01:41.3]} 25... Qf8 {[%clk 0:00:51.8]} 26. e5 {[%clk
0:01:13.9]} 26... Qg7 {[%clk 0:00:51.8]} 27. Re3 {[%clk 0:01:10.6]} 27... Rae8
{[%clk 0:00:51.6]} 28. Rfe1 {[%clk 0:01:10.6]} 28... gxh5 {[%clk 0:00:25.3]} 29.
Kh2 {[%clk 0:00:53.4]} 29... Nd7 {[%clk 0:00:18.8]} 30. Qc3 {[%clk 0:00:47.7]}
30... dxe5 {[%clk 0:00:18.5]} 31. fxe5 {[%clk 0:00:38.8]} 31... Nxe5 {[%clk
0:00:16.8]} 32. Kg1 {[%clk 0:00:38.7]} 32... Nf3+ {[%clk 0:00:13.2]} 33. Bxf3
{[%clk 0:00:34.2]} 33... Qxc3 {[%clk 0:00:13.4]} 34. Rxc3 {[%clk 0:00:33.6]}
34... Rxe1+ {[%clk 0:00:13.7]} 35. Kf2 {[%clk 0:00:34.5]} 35... R1e7 {[%clk
0:00:13.6]} 36. Bxh5 {[%clk 0:00:34.5]} 36... Rd8 {[%clk 0:00:12.2]} 37. Bf3
{[%clk 0:00:34.5]} 37... Kg7 {[%clk 0:00:12.4]} 38. Rc4 {[%clk 0:00:31.9]} 38...
Rd6 {[%clk 0:00:12.4]} 39. Rg4+ {[%clk 0:00:29.7]} 39... Rg6 {[%clk 0:00:12.8]}
40. Rc4 {[%clk 0:00:29.5]} 40... Rf6 {[%clk 0:00:12.1]} 41. g4 {[%clk
0:00:22.5]} 41... h6 {[%clk 0:00:12]} 42. Rc3 {[%clk 0:00:18.2]} 42... Kf8
{[%clk 0:00:11.6]} 43. Rc4 {[%clk 0:00:17.4]} 43... Ke8 {[%clk 0:00:11.7]} 44.
Rc3 {[%clk 0:00:17.9]} 44... Kd8 {[%clk 0:00:11.9]} 45. Kg3 {[%clk 0:00:18.4]}
45... Re5 {[%clk 0:00:11.1]} 46. Rd3 {[%clk 0:00:05.5]} 46... Re1 {[%clk
0:00:09.7]} 47. Kf2 {[%clk 0:00:03]} 47... Rc1 {[%clk 0:00:09.1]} 48. Kg2 {[%clk
0:00:02.8]} 48... Rc5 {[%clk 0:00:09]} 49. Re3 {[%clk 0:00:01.5]} 49... Rxb5
{[%clk 0:00:07.5]} 50. Kg3 {[%clk 0:00:02.1]} 50... Rc5 {[%clk 0:00:07.3]} 51.
Rd3 {[%clk 0:00:02.2]} 51... Rc1 {[%clk 0:00:07.1]} 52. Re3 {[%clk 0:00:01.3]}
52... Ra1 {[%clk 0:00:06.9]} 0-1

[Event "Late-Titled-Tuesday-Blitz-March-19-2024"]
[Site "Chess.com"]
[Date "2024.03.19"]
[Round "7"]
[White "masnyszachistaaa"]
[Black "ChessSwole"]
[Result "1-0"]
[WhiteElo "2574"]
[BlackElo "2683"]
[TimeControl "180+1"]
[EndTime "15:17:02 PDT"]
[Termination "masnyszachistaaa won on time"]

1. d4 {[%clk 0:03:00]} 1... d5 {[%clk 0:02:58.9]} 2. Nf3 {[%clk 0:02:59.1]} 2...
Nf6 {[%clk 0:02:58.3]} 3. Bf4 {[%clk 0:02:56.8]} 3... c5 {[%clk 0:02:57.5]} 4.
e3 {[%clk 0:02:56.5]} 4... Nc6 {[%clk 0:02:56.1]} 5. c3 {[%clk 0:02:55.2]} 5...
Qb6 {[%clk 0:02:54.3]} 6. Qb3 {[%clk 0:02:52]} 6... c4 {[%clk 0:02:54.2]} 7. Qc2
{[%clk 0:02:52.6]} 7... Bf5 {[%clk 0:02:53.9]} 8. Qc1 {[%clk 0:02:53.4]} 8... e6
{[%clk 0:02:54.2]} 9. Nbd2 {[%clk 0:02:51.7]} 9... Be7 {[%clk 0:02:51.2]} 10. h3
{[%clk 0:02:46.5]} 10... O-O {[%clk 0:02:46.7]} 11. Be2 {[%clk 0:02:45.8]} 11...
Qd8 {[%clk 0:02:45.1]} 12. b3 {[%clk 0:02:18.8]} 12... b5 {[%clk 0:02:44]} 13.
a4 {[%clk 0:02:18.5]} 13... a6 {[%clk 0:02:43.5]} 14. O-O {[%clk 0:02:16.2]}
14... h6 {[%clk 0:02:40.1]} 15. b4 {[%clk 0:02:10.6]} 15... bxa4 {[%clk
0:02:27.4]} 16. Rxa4 {[%clk 0:02:10.1]} 16... a5 {[%clk 0:02:28.1]} 17. b5
{[%clk 0:02:07]} 17... Na7 {[%clk 0:02:22.7]} 18. Qb2 {[%clk 0:02:06.7]} 18...
Qb6 {[%clk 0:02:18.1]} 19. Rfa1 {[%clk 0:01:48.7]} 19... Nxb5 {[%clk 0:01:51.7]}
20. Nxc4 {[%clk 0:01:39.8]} 20... dxc4 {[%clk 0:01:49.3]} 21. Bxc4 {[%clk
0:01:40.7]} 21... Rfb8 {[%clk 0:01:25]} 22. Bxb8 {[%clk 0:01:40.1]} 22... Rxb8
{[%clk 0:01:25.9]} 23. Rxa5 {[%clk 0:01:29]} 23... Nd6 {[%clk 0:01:25.1]} 24.
Qxb6 {[%clk 0:01:27.1]} 24... Rxb6 {[%clk 0:01:26]} 25. Bf1 {[%clk 0:01:22.2]}
25... Rc6 {[%clk 0:01:12.3]} 26. Rc1 {[%clk 0:01:08.1]} 26... Nc4 {[%clk
0:00:58.2]} 27. Ra4 {[%clk 0:01:08.1]} 27... Nb2 {[%clk 0:00:53.1]} 28. Ra8+
{[%clk 0:01:03.2]} 28... Kh7 {[%clk 0:00:52.9]} 29. Ne5 {[%clk 0:00:59.8]} 29...
Rc7 {[%clk 0:00:51.9]} 30. Nxf7 {[%clk 0:00:57.6]} 30... Ne4 {[%clk 0:00:48.4]}
31. c4 {[%clk 0:00:52.4]} 31... Bf6 {[%clk 0:00:45.8]} 32. Nd8 {[%clk
0:00:29.2]} 32... Nd2 {[%clk 0:00:36.7]} 33. c5 {[%clk 0:00:25.6]} 33... e5
{[%clk 0:00:26.2]} 34. d5 {[%clk 0:00:21.9]} 34... Nxf1 {[%clk 0:00:26.5]} 35.
Kxf1 {[%clk 0:00:19.3]} 35... Nd3 {[%clk 0:00:27]} 36. Rc3 {[%clk 0:00:12.9]}
36... Rxc5 {[%clk 0:00:18.9]} 37. Rxc5 {[%clk 0:00:12.1]} 37... Nxc5 {[%clk
0:00:19.8]} 38. Nc6 {[%clk 0:00:09.4]} 38... Be4 {[%clk 0:00:16]} 39. Nb4 {[%clk
0:00:07.8]} 39... Be7 {[%clk 0:00:10.5]} 40. f3 {[%clk 0:00:07.8]} 40... Bg6
{[%clk 0:00:09.5]} 41. e4 {[%clk 0:00:08.2]} 41... Nxe4 {[%clk 0:00:08.9]} 42.
Nc6 {[%clk 0:00:08.4]} 42... Ng3+ {[%clk 0:00:05.4]} 43. Kf2 {[%clk 0:00:08.7]}
43... Bh4 {[%clk 0:00:06.2]} 44. Nxe5 {[%clk 0:00:09.1]} 44... Nf5+ {[%clk
0:00:04.7]} 45. Kg1 {[%clk 0:00:05.9]} 45... Bf6 {[%clk 0:00:03.6]} 46. Nxg6
{[%clk 0:00:05.6]} 46... Kxg6 {[%clk 0:00:04.5]} 47. Kf2 {[%clk 0:00:04.6]}
47... Bd4+ {[%clk 0:00:04.4]} 48. Ke2 {[%clk 0:00:04.4]} 48... Kf6 {[%clk
0:00:04.9]} 49. Kd3 {[%clk 0:00:04.5]} 49... Be5 {[%clk 0:00:04.9]} 50. Ra6+
{[%clk 0:00:04.4]} 50... Kf7 {[%clk 0:00:04.8]} 51. Ke4 {[%clk 0:00:04.6]} 51...
Nh4 {[%clk 0:00:02.2]} 52. Kxe5 {[%clk 0:00:04.7]} 52... Nxg2 {[%clk 0:00:03]}
53. Ra7+ {[%clk 0:00:05.2]} 53... Kg6 {[%clk 0:00:02.6]} 54. d6 {[%clk
0:00:05.5]} 54... Ne3 {[%clk 0:00:03.4]} 55. d7 {[%clk 0:00:05.2]} 55... Nc4+
{[%clk 0:00:03.5]} 56. Kd4 {[%clk 0:00:05]} 56... Nd6 {[%clk 0:00:03.6]} 57. Ra6
{[%clk 0:00:05]} 1-0

[Event "Late-Titled-Tuesday-Blitz-March-19-2024"]
[Site "Chess.com"]
[Date "2024.03.19"]
[Round "7"]
[White "TregubovP"]
[Black "alexrustemov"]
[Result "1-0"]
[WhiteElo "2691"]
[BlackElo "2852"]
[TimeControl "180+1"]
[EndTime "15:17:03 PDT"]
[Termination "TregubovP won on time"]

1. e4 {[%clk 0:03:00.9]} 1... e6 {[%clk 0:02:59.7]} 2. d4 {[%clk 0:02:59.7]}
2... d5 {[%clk 0:03:00.1]} 3. e5 {[%clk 0:02:59.9]} 3... c5 {[%clk 0:03:00.3]}
4. c3 {[%clk 0:03:00.4]} 4... Qb6 {[%clk 0:02:59.7]} 5. Nf3 {[%clk 0:03:00.5]}
5... Bd7 {[%clk 0:03:00]} 6. Be2 {[%clk 0:03:00.8]} 6... Bb5 {[%clk 0:03:00]} 7.
dxc5 {[%clk 0:02:59.6]} 7... Bxc5 {[%clk 0:02:59.5]} 8. b4 {[%clk 0:03:00.1]}
8... Bxe2 {[%clk 0:02:55]} 9. Qxe2 {[%clk 0:02:59.7]} 9... Be7 {[%clk
0:02:54.3]} 10. O-O {[%clk 0:02:54.9]} 10... Nc6 {[%clk 0:02:50.1]} 11. a4
{[%clk 0:02:51.3]} 11... a6 {[%clk 0:02:45.9]} 12. Na3 {[%clk 0:02:40.6]} 12...
h5 {[%clk 0:02:42.4]} 13. a5 {[%clk 0:02:39.4]} 13... Qc7 {[%clk 0:02:40.1]} 14.
Nc2 {[%clk 0:01:57.6]} 14... Nh6 {[%clk 0:02:39.1]} 15. Ncd4 {[%clk 0:01:57.4]}
15... Rc8 {[%clk 0:02:31.2]} 16. Bd2 {[%clk 0:01:52.3]} 16... g6 {[%clk
0:02:19.4]} 17. b5 {[%clk 0:01:44.5]} 17... axb5 {[%clk 0:01:58.5]} 18. Nxb5
{[%clk 0:01:41]} 18... Qd7 {[%clk 0:01:57.9]} 19. Bg5 {[%clk 0:01:33.2]} 19...
Kf8 {[%clk 0:01:39]} 20. Bxe7+ {[%clk 0:01:28.3]} 20... Qxe7 {[%clk 0:01:38.8]}
21. Nd6 {[%clk 0:01:25.5]} 21... Rc7 {[%clk 0:01:38.1]} 22. Rfb1 {[%clk
0:01:15.3]} 22... Kg7 {[%clk 0:01:37.9]} 23. Rb6 {[%clk 0:01:07.7]} 23... Ra8
{[%clk 0:01:33.4]} 24. Qb5 {[%clk 0:01:05.1]} 24... Nf5 {[%clk 0:01:17.5]} 25.
Nxb7 {[%clk 0:00:57.9]} 25... Na7 {[%clk 0:00:58.9]} 26. Qb4 {[%clk 0:00:51.6]}
26... Qd7 {[%clk 0:00:33.6]} 27. Nd6 {[%clk 0:00:49]} 27... Nc6 {[%clk
0:00:29.3]} 28. Nxf5+ {[%clk 0:00:47.1]} 28... gxf5 {[%clk 0:00:26.7]} 29. Qh4
{[%clk 0:00:43.3]} 29... Ne7 {[%clk 0:00:25.2]} 30. Qxh5 {[%clk 0:00:33.1]}
30... Ng6 {[%clk 0:00:25]} 31. Qg5 {[%clk 0:00:32.8]} 31... Qe7 {[%clk
0:00:23.7]} 32. Qe3 {[%clk 0:00:22.5]} 32... Rac8 {[%clk 0:00:21.9]} 33. Rb3
{[%clk 0:00:20.4]} 33... f4 {[%clk 0:00:18.2]} 34. Qd2 {[%clk 0:00:16.8]} 34...
Qc5 {[%clk 0:00:16.7]} 35. a6 {[%clk 0:00:15.8]} 35... Ra8 {[%clk 0:00:16.9]}
36. Rba3 {[%clk 0:00:15.3]} 36... Rca7 {[%clk 0:00:17]} 37. h4 {[%clk
0:00:14.5]} 37... Qc4 {[%clk 0:00:13.7]} 38. h5 {[%clk 0:00:13.6]} 38... Ne7
{[%clk 0:00:13.6]} 39. Ra4 {[%clk 0:00:14]} 39... Qc7 {[%clk 0:00:10.2]} 40.
Qxf4 {[%clk 0:00:13.9]} 40... Ng8 {[%clk 0:00:10.7]} 41. Qg5+ {[%clk 0:00:13.5]}
41... Kh7 {[%clk 0:00:10.2]} 42. h6 {[%clk 0:00:12.8]} 42... f6 {[%clk
0:00:09.2]} 43. exf6 {[%clk 0:00:10.9]} 43... Qf7 {[%clk 0:00:09.9]} 44. Rf4
{[%clk 0:00:06.5]} 44... Qg6 {[%clk 0:00:06.3]} 45. Qxg6+ {[%clk 0:00:05.6]}
45... Kxg6 {[%clk 0:00:07.2]} 46. Ne5+ {[%clk 0:00:05.5]} 46... Kxh6 {[%clk
0:00:04.6]} 47. g4 {[%clk 0:00:05.1]} 47... Kh7 {[%clk 0:00:03.6]} 48. g5 {[%clk
0:00:05.2]} 48... Nxf6 {[%clk 0:00:03.4]} 49. gxf6 {[%clk 0:00:04.8]} 49... Kh6
{[%clk 0:00:03.8]} 50. Rg4 {[%clk 0:00:04.6]} 50... Rxa6 {[%clk 0:00:03.7]} 51.
Rxa6 {[%clk 0:00:03.5]} 51... Rxa6 {[%clk 0:00:04.6]} 52. f7 {[%clk 0:00:04.1]}
52... Ra8 {[%clk 0:00:05.3]} 53. Rg8 {[%clk 0:00:04.2]} 53... Ra1+ {[%clk
0:00:05.8]} 54. Kg2 {[%clk 0:00:03.8]} 54... Kh7 {[%clk 0:00:05.3]} 55. f8=Q
{[%clk 0:00:04]} 55... Rg1+ {[%clk 0:00:05.2]} 56. Kxg1 {[%clk 0:00:03.7]} 1-0

[Event "Late-Titled-Tuesday-Blitz-March-19-2024"]
[Site "Chess.com"]
[Date "2024.03.19"]
[Round "7"]
[White "GMBenjaminBok"]
[Black "AradNazari"]
[Result "1-0"]
[WhiteElo "2964"]
[BlackElo "2760"]
[TimeControl "180+1"]
[EndTime "15:17:04 PDT"]
[Termination "GMBenjaminBok won on time"]

1. d4 {[%clk 0:03:00.9]} 1... Nf6 {[%clk 0:03:00.3]} 2. c4 {[%clk 0:03:00.1]}
2... g6 {[%clk 0:03:00.9]} 3. g3 {[%clk 0:02:59.3]} 3... c6 {[%clk 0:03:00.7]}
4. Nf3 {[%clk 0:02:59]} 4... Bg7 {[%clk 0:03:00.6]} 5. Bg2 {[%clk 0:02:58.7]}
5... O-O {[%clk 0:03:01.2]} 6. O-O {[%clk 0:02:54.2]} 6... d5 {[%clk 0:03:01.9]}
7. b3 {[%clk 0:02:54.9]} 7... a5 {[%clk 0:03:01.7]} 8. Nc3 {[%clk 0:02:54.9]}
8... Bf5 {[%clk 0:03:01.1]} 9. Bb2 {[%clk 0:02:54.3]} 9... Ne4 {[%clk
0:03:01.1]} 10. e3 {[%clk 0:02:53.7]} 10... Nxc3 {[%clk 0:02:57.1]} 11. Bxc3
{[%clk 0:02:54.6]} 11... Be4 {[%clk 0:02:57.7]} 12. Qe2 {[%clk 0:02:55]} 12...
a4 {[%clk 0:02:57]} 13. Rfc1 {[%clk 0:02:44.4]} 13... Qb6 {[%clk 0:02:55.3]} 14.
b4 {[%clk 0:02:28.3]} 14... Nd7 {[%clk 0:02:34]} 15. Bf1 {[%clk 0:02:27.7]}
15... dxc4 {[%clk 0:02:26.6]} 16. Nd2 {[%clk 0:02:18]} 16... Bd3 {[%clk
0:02:24.1]} 17. Nxc4 {[%clk 0:02:18.2]} 17... Bxe2 {[%clk 0:02:22.4]} 18. Nxb6
{[%clk 0:02:17]} 18... Nxb6 {[%clk 0:02:13.2]} 19. Bxe2 {[%clk 0:02:16.5]} 19...
Nd5 {[%clk 0:02:13.8]} 20. Be1 {[%clk 0:02:15.5]} 20... e5 {[%clk 0:02:14]} 21.
dxe5 {[%clk 0:02:12.1]} 21... Bxe5 {[%clk 0:02:09.7]} 22. Rab1 {[%clk
0:02:12.5]} 22... a3 {[%clk 0:02:03.6]} 23. b5 {[%clk 0:02:08.3]} 23... Bb2
{[%clk 0:02:02.4]} 24. Rc5 {[%clk 0:02:05.1]} 24... Rfc8 {[%clk 0:01:38.5]} 25.
bxc6 {[%clk 0:01:57]} 25... bxc6 {[%clk 0:01:38.3]} 26. Bf3 {[%clk 0:01:57]}
26... Ne7 {[%clk 0:01:27.1]} 27. Kg2 {[%clk 0:01:15.5]} 27... Rab8 {[%clk
0:01:23.5]} 28. Rc2 {[%clk 0:01:12.1]} 28... Nd5 {[%clk 0:01:02.7]} 29. Rd1
{[%clk 0:01:07.3]} 29... Bf6 {[%clk 0:00:23.6]} 30. Rd3 {[%clk 0:00:56.2]} 30...
Be7 {[%clk 0:00:15.1]} 31. Bc3 {[%clk 0:00:41]} 31... Nxc3 {[%clk 0:00:12.9]}
32. Rdxc3 {[%clk 0:00:37.8]} 32... c5 {[%clk 0:00:11.6]} 33. Rxa3 {[%clk
0:00:36.7]} 33... Bf6 {[%clk 0:00:08.9]} 34. Ra7 {[%clk 0:00:33.2]} 34... Be5
{[%clk 0:00:05.3]} 35. Bd5 {[%clk 0:00:32.3]} 35... Rc7 {[%clk 0:00:05.5]} 36.
Rxc7 {[%clk 0:00:32.6]} 36... Bxc7 {[%clk 0:00:06.4]} 37. Rxc5 {[%clk
0:00:33.1]} 37... Bd6 {[%clk 0:00:04.3]} 38. Rc6 {[%clk 0:00:30.7]} 38... Rd8
{[%clk 0:00:04.9]} 39. e4 {[%clk 0:00:23.7]} 39... Kg7 {[%clk 0:00:05.4]} 40. a4
{[%clk 0:00:23.3]} 40... Rd7 {[%clk 0:00:04.2]} 41. a5 {[%clk 0:00:23.1]} 41...
Be5 {[%clk 0:00:01.9]} 42. a6 {[%clk 0:00:22.1]} 42... Bd4 {[%clk 0:00:02.5]}
43. Rc4 {[%clk 0:00:19.5]} 43... Ba7 {[%clk 0:00:02.4]} 44. Rb4 {[%clk
0:00:16.4]} 44... f5 {[%clk 0:00:02.7]} 45. Be6 {[%clk 0:00:15.2]} 45... Rd6
{[%clk 0:00:01.5]} 46. Rb7+ {[%clk 0:00:13.4]} 46... Kf6 {[%clk 0:00:01.7]} 47.
Rxa7 {[%clk 0:00:09.3]} 47... Rxe6 {[%clk 0:00:02.2]} 48. exf5 {[%clk
0:00:09.3]} 48... Kxf5 {[%clk 0:00:02.9]} 49. Rf7+ {[%clk 0:00:04.6]} 49... Kg5
{[%clk 0:00:03.5]} 50. a7 {[%clk 0:00:04.9]} 50... Ra6 {[%clk 0:00:04.4]} 51.
Rxh7 {[%clk 0:00:05]} 51... Kg4 {[%clk 0:00:05]} 52. Rg7 {[%clk 0:00:04.1]}
52... g5 {[%clk 0:00:05.4]} 53. h4 {[%clk 0:00:03.1]} 53... Rg6 {[%clk 0:00:04]}
54. Rxg6 {[%clk 0:00:02.8]} 1-0